bitfinex-derivatives/quotes_ETHF0:USTF0_20240930
["timestamp","ask_amount","ask_price","bid_price","bid_amount"]
[1727710737211,2.39,2611.2,2611.1,0.39299]
[1727710737911,2.77298,2611.2,2611.1,0.39299]
[1727710739116,2.39,2611.2,2611.1,0.39299]
[1727710739813,6.60258,2611.2,2611.1,0.01]
[1727710741417,2.77298,2611.2,2611.1,0.01]
[1727710742111,2.77298,2611.2,2610.3,1.00133205]
[1727710742112,0.95749,2611.1,2610.3,1.00133205]
[1727710742415,2.39,2611.3,2610.6,0.38307]
[1727710742416,2.39,2610.7,2610.6,0.38307]
[1727710742622,2.77304,2610.9,2610.8,0.38304]
[1727710742821,2.77304,2610.9,2610.5,0.38308]
[1727710742822,0.38305,2610.8,2610.5,0.38308]
[1727710743114,0.38305,2610.8,2610.4,1.00133205]
[1727710743115,0.38305,2610.8,2610.7,0.38305]
[1727710744412,0.9576,2610.8,2610.4,1.00133205]
[1727710744716,2.39,2610.6,2610.2,1.00133205]
[1727710744916,0.38314,2610.1,2610.0,1.38448205]
[1727710745115,0.38316,2610.0,2609.9,1.00133205]
[1727710745311,0.38317,2609.9,2609.8,1.38450205]
[1727710745507,0.38319,2609.8,2609.7,4.59233205]
[1727710745708,2.39,2609.9,2609.8,0.38319]
[1727710745709,2.77318,2609.9,2609.8,0.38319]
[1727710746215,2.39,2609.9,2609.8,0.38319]
[1727710746517,2.77317,2609.9,2609.8,0.38319]
[1727710746705,2.39,2609.9,2609.8,0.38319]
[1727710746912,2.39,2610.1,2609.6,1.00133205]
[1727710747205,2.39,2610.1,2610.0,0.38316]
[1727710748216,2.77314,2610.1,2610.0,0.38316]
[1727710748514,2.77314,2610.1,2609.7,4.20913205]
[1727710748515,0.38318,2609.9,2609.8,0.38318]
[1727710748715,2.39,2609.9,2609.7,1.00133205]
[1727710749025,0.3832,2609.7,2609.6,1.00133205]
[1727710749222,3.2078,2610.2,2609.5,1.00133205]
[1727710749515,2.39,2610.0,2609.8,3.2078]
[1727710749721,0.38317,2609.9,2609.8,3.59097]
[1727710749919,2.77316,2610.0,2609.9,0.38317]
[1727710750128,2.39,2610.0,2609.9,0.38317]
[1727710751024,2.39,2610.2,2609.6,1.95936205]
[1727710751213,2.39,2610.2,2610.1,0.38314]
[1727710751519,2.39,2610.4,2609.8,3.2078]
[1727710751723,2.39,2610.4,2610.3,0.38311]
[1727710751724,2.7731,2610.4,2610.3,0.38311]
[1727710752525,2.39,2610.4,2610.3,0.38311]
[1727710752913,3.2078,2610.8,2610.1,3.2078]
[1727710753123,2.39,2610.6,2610.5,0.38307]
[1727710753718,2.39,2610.6,2610.1,3.2078]
[1727710753917,2.39,2610.4,2610.3,0.3831]
[1727710754423,9.429,2610.4,2609.8,1.00133205]
[1727710754624,2.77317,2609.9,2609.8,1.00133205]
[1727710755423,6.60517,2609.9,2609.8,1.00133205]
[1727710755924,0.38321,2609.7,2609.5,0.38322]
[1727710756128,2.39,2609.6,2609.5,0.38322]
[1727710756419,2.39,2609.6,2609.0,3.2078]
[1727710756620,0.38324,2609.5,2609.3,0.38325]
[1727710756822,2.39,2609.4,2609.3,0.38326]
[1727710759123,12.222,2609.4,2608.4,3.2078]
[1727710759325,2.39,2608.8,2608.7,0.38335]
[1727710759724,2.39,2608.8,2608.4,3.2078]
[1727710759725,2.39,2608.8,2608.6,0.38335]
[1727710759925,2.39,2608.8,2608.4,3.2078]
[1727710760121,3.2078,2609.0,2608.4,3.2078]
[1727710760327,3.2078,2609.5,2608.5,0.95845]
[1727710760635,2.39,2609.3,2609.1,0.38328]
[1727710760833,2.77326,2609.3,2609.1,0.38328]
[1727710761138,2.39,2609.3,2608.8,3.2078]
[1727710761432,2.39,2609.3,2608.6,0.95841]
[1727710761634,2.39,2609.3,2609.2,0.38327]
[1727710762029,3.59103,2609.5,2609.3,0.38326]
[1727710762336,2.39,2609.4,2609.3,0.38326]
[1727710762628,2.39,2609.4,2609.1,0.38328]
[1727710762833,2.39,2609.2,2609.1,0.38328]
[1727710763025,2.39,2609.2,2608.9,3.2078]
[1727710763231,2.39,2609.2,2609.0,0.38329]
[1727710763538,2.39,2609.2,2609.1,0.38329]
[1727710763835,2.39,2609.2,2609.0,0.38329]
[1727710764026,7.0406,2609.1,2608.4,3.2078]
[1727710764226,2.39,2608.6,2608.5,0.38338]
[1727710765830,0.38335,2608.7,2608.5,0.38338]
[1727710766042,2.95,2608.9,2608.1,3.2078]
[1727710766427,0.38336,2608.7,2608.1,3.2078]
[1727710766623,0.38336,2608.7,2608.1,4.16637]
[1727710767044,0.38336,2608.7,2608.5,0.38336]
[1727710767241,0.38336,2608.7,2608.2,0.38342]
[1727710767538,2.95,2608.9,2608.1,3.2078]
[1727710767741,3.2078,2609.1,2608.2,0.95854]
[1727710767931,0.38332,2608.9,2608.7,0.38333]
[1727710768133,0.38331,2609.0,2608.8,0.38332]
[1727710768333,2.95,2609.2,2608.5,3.2078]
[1727710768838,0.38333,2608.8,2608.6,0.38335]
[1727710769133,0.95823,2609.1,2608.3,0.95851]
[1727710769536,0.95826,2609.0,2608.6,0.38336]
[1727710769740,0.95826,2609.0,2608.1,4.16636]
[1727710770035,0.38332,2608.9,2608.4,3.2078]
[1727710770237,3.90821,2609.2,2608.4,3.2078]
[1727710770433,0.38331,2609.0,2608.9,0.38331]
[1727710770637,0.38332,2608.9,2608.8,0.38332]
[1727710771033,2.95,2609.2,2608.5,0.95845]
[1727710771238,0.38331,2609.0,2608.9,0.38331]
[1727710772041,0.38331,2609.0,2608.8,0.38332]
[1727710772435,2.95,2609.2,2608.5,0.95845]
[1727710772635,0.3833,2609.1,2608.9,0.38331]
[1727710772831,2.95,2609.2,2608.9,0.38331]
[1727710772832,0.3833,2609.0,2608.9,0.38331]
[1727710773034,0.38331,2609.0,2608.9,0.38332]
[1727710773735,10.79109,2609.0,2608.1,0.95857]
[1727710773932,0.38337,2608.6,2608.5,0.38337]
[1727710774134,0.95834,2608.8,2608.1,0.95857]
[1727710774343,0.38339,2608.5,2608.4,0.38338]
[1727710774848,0.38337,2608.6,2608.5,0.38336]
[1727710775339,0.38341,2608.3,2608.2,0.38341]
[1727710775732,0.38341,2608.3,2607.7,4.16653]
[1727710775733,3.8336,2608.3,2607.7,4.16653]
[1727710775939,0.38345,2608.1,2608.0,0.38344]
[1727710776134,2.95,2608.2,2607.7,3.2078]
[1727710776335,6.1578,2607.8,2607.4,0.00491018]
[1727710776534,3.33352,2607.5,2607.4,0.00491018]
[1727710776736,3.33352,2607.5,2606.7,3.2078]
[1727710776737,2.95,2607.5,2606.7,4.16689]
[1727710776939,0.38356,2607.3,2606.8,1.3427]
[1727710777135,0.38356,2607.3,2606.7,4.16691]
[1727710777136,2.95,2607.5,2606.7,3.2078]
[1727710777333,3.33358,2607.1,2607.0,0.3836]
[1727710777544,2.95,2607.1,2606.7,3.2078]
[1727710777740,3.33359,2607.1,2606.9,0.3836]
[1727710778048,2.95,2607.1,2607.0,0.3836]
[1727710778439,12.786,2607.1,2606.7,3.59144]
[1727710778640,2.95,2606.8,2606.6,0.38365]
[1727710778841,2.95,2606.8,2606.3,0.95926]
[1727710779036,2.95,2606.8,2606.7,0.38364]
[1727710779242,6.786,2606.8,2606.7,0.38364]
[1727710779443,3.2078,2607.6,2606.7,7.0438]
[1727710779641,3.2078,2607.6,2607.5,0.38352]
[1727710779948,0.38344,2608.1,2607.8,0.38347]
[1727710780242,0.38344,2608.1,2607.5,3.2078]
[1727710780447,3.33343,2608.2,2607.5,3.2078]
[1727710780641,0.38344,2608.1,2607.5,3.2078]
[1727710780840,0.38344,2608.1,2607.8,0.38347]
[1727710781346,2.95,2608.2,2607.7,0.38348]
[1727710781347,0.38346,2608.0,2607.7,0.38348]
[1727710781647,0.38346,2608.0,2607.5,3.2078]
[1727710781648,0.38344,2608.1,2607.8,0.38347]
[1727710781846,2.95,2608.2,2608.0,0.38344]
[1727710782341,2.95,2608.2,2607.6,0.95878]
[1727710782648,6.1578,2608.5,2608.3,0.38341]
[1727710782946,6.1578,2608.5,2608.4,0.38339]
[1727710783144,2.95,2608.8,2608.4,0.38339]
[1727710783354,2.95,2608.8,2607.2,5.44381]
[1727710783355,2.95,2608.5,2607.7,3.2078]
[1727710783648,3.2078,2608.7,2607.5,1.53479]
[1727710783649,2.95,2608.2,2608.0,0.38344]
[1727710783850,3.8344,2608.1,2607.6,3.2078]
[1727710784045,2.95,2608.2,2607.9,0.38345]
[1727710784445,3.33343,2608.2,2607.9,0.38345]
[1727710784647,3.33343,2608.2,2607.6,3.2078]
[1727710784648,2.95,2608.2,2607.6,3.2078]
[1727710784844,3.33343,2608.2,2607.9,0.38346]
[1727710785040,2.95,2607.8,2607.7,0.38349]
[1727710785241,2.95,2607.8,2607.3,4.16668]
[1727710785242,2.95,2607.8,2607.3,3.2078]
[1727710785541,0.3835,2607.7,2607.4,0.38353]
[1727710785745,0.38352,2607.6,2607.3,3.59134]
[1727710785942,0.38352,2607.6,2607.4,0.38354]
[1727710786345,3.90873,2607.8,2607.3,3.2078]
[1727710786546,2.95,2607.8,2607.3,3.2078]
[1727710786844,2.95,2607.8,2606.8,0.95907]
[1727710786845,0.38353,2607.5,2606.9,3.2078]
[1727710787044,0.38353,2607.5,2607.2,0.38356]
[1727710787249,0.95874,2607.7,2607.2,0.38356]
[1727710787449,0.38354,2607.5,2607.2,0.38356]
[1727710787764,0.38354,2607.5,2607.3,0.38355]
[1727710788241,0.38354,2607.5,2606.5,1.95691317]
[1727710788242,9.993,2607.4,2606.6,3.2078]
[1727710788445,6.1578,2607.4,2606.6,3.2078]
[1727710788646,0.38361,2607.0,2606.8,0.38362]
[1727710788852,0.38362,2606.9,2606.7,0.38363]
[1727710789153,2.95,2607.1,2606.6,3.2078]
[1727710789348,3.33359,2607.1,2606.9,0.3836]
[1727710789648,2.95,2607.1,2606.5,0.95916]
[1727710789850,0.38359,2607.1,2606.9,0.3836]
[1727710790446,7.11667,2607.4,2606.6,3.2078]
[1727710790447,0.38358,2607.2,2606.6,3.2078]
[1727710790654,0.38358,2607.2,2606.9,0.3836]
[1727710790858,0.38358,2607.1,2606.9,0.3836]
[1727710791445,2.95,2607.4,2606.6,3.2078]
[1727710791648,2.95,2607.4,2607.0,0.38359]
[1727710791859,2.95,2607.4,2606.7,0.95911]
[1727710792053,0.38356,2607.3,2607.0,0.38359]
[1727710792252,3.33354,2607.4,2607.1,0.38357]
[1727710792448,2.95,2607.4,2606.7,0.95911]
[1727710792648,2.95,2607.4,2606.6,3.2078]
[1727710792855,3.33354,2607.4,2607.2,0.38356]
[1727710793051,0.38359,2607.1,2606.9,0.3836]
[1727710793249,0.38359,2607.1,2606.6,3.2078]
[1727710793250,2.95,2607.1,2606.6,3.2078]
[1727710793649,3.3336,2607.1,2606.6,3.2078]
[1727710793850,0.38364,2606.7,2606.5,0.38366]
[1727710794148,0.38364,2606.7,2606.1,2.45594476]
[1727710794149,2.95,2606.8,2606.1,0.99776317]
[1727710794352,2.95,2606.8,2606.0,3.2078]
[1727710794353,2.95,2606.8,2606.3,0.38369]
[1727710794548,0.38368,2606.5,2606.3,0.38369]
[1727710794852,0.38368,2606.5,2606.2,0.3837]
[1727710795056,0.38367,2606.5,2606.3,0.38369]
[1727710795353,0.38367,2606.6,2606.4,0.38368]
[1727710795543,2.95,2606.8,2606.4,0.38367]
[1727710795745,2.95,2606.8,2606.1,0.95933]
[1727710795947,2.95,2606.8,2606.5,0.38366]
[1727710795948,0.38364,2606.7,2606.5,0.38366]
[1727710796259,0.38363,2606.8,2606.6,0.38365]
[1727710796551,3.90898,2607.1,2606.7,0.38363]
[1727710796746,0.38363,2606.9,2606.7,0.38364]
[1727710797147,3.33359,2607.1,2607.0,0.3836]
[1727710797446,2.95,2607.4,2606.6,3.2078]
[1727710797653,2.95,2607.4,2607.1,0.38358]
[1727710797654,0.38356,2607.3,2607.1,0.38358]
[1727710798348,3.33355,2607.4,2607.2,0.38356]
[1727710798655,2.95,2607.4,2607.3,0.38355]
[1727710800057,3.2078,2607.7,2607.0,0.95898]
[1727710800248,0.38353,2607.5,2606.9,4.16682]
[1727710800455,3.2078,2607.7,2606.9,3.2078]
[1727710800760,0.38357,2607.2,2606.6,0.95913]
[1727710800958,0.38357,2607.2,2607.0,0.38358]
[1727710801154,6.786,2607.1,2606.5,3.2078]
[1727710801361,6.786,2607.1,2606.7,0.38363]
[1727710801362,0.38362,2606.9,2606.7,0.38363]
[1727710801651,0.38362,2606.9,2606.8,0.38363]
[1727710801854,2.95,2607.1,2606.5,3.2078]
[1727710802061,4.16668,2607.4,2606.5,3.2078]
[1727710802062,0.38357,2607.2,2607.0,0.38359]
[1727710802357,6.1578,2607.4,2606.6,0.95915]
[1727710802758,0.38353,2607.5,2607.3,0.38354]
[1727710803057,0.38352,2607.5,2607.4,0.38353]
[1727710803251,0.38352,2607.5,2607.0,4.16678]
[1727710803252,2.95,2607.7,2607.0,3.2078]
[1727710803572,0.38355,2607.4,2607.2,0.38356]
[1727710803859,0.38357,2607.2,2607.1,0.38358]
[1727710804058,0.38357,2607.2,2607.0,3.2078]
[1727710804265,0.38358,2607.1,2607.0,3.59138]
[1727710804552,0.38358,2607.2,2607.1,0.38358]
[1727710804749,2.95,2607.4,2607.0,3.2078]
[1727710804952,3.33355,2607.4,2607.3,0.38355]
[1727710805145,2.95,2607.4,2607.0,3.2078]
[1727710805557,0.38357,2607.3,2607.0,3.2078]
[1727710805863,0.38357,2607.2,2607.1,0.38358]
[1727710806063,7.043,2607.3,2606.7,3.2078]
[1727710806352,7.043,2607.3,2606.7,3.59144]
[1727710806353,0.38363,2606.8,2606.7,3.59144]
[1727710806555,0.38363,2606.8,2606.7,3.2078]
[1727710806754,0.38369,2606.4,2606.3,0.38369]
[1727710807055,0.38369,2606.4,2606.1,0.38372]
[1727710807056,0.38372,2606.2,2606.1,0.38372]
[1727710807247,0.95923,2606.4,2606.2,0.38371]
[1727710807248,0.38369,2606.4,2606.2,0.38371]
[1727710807558,0.3837,2606.3,2606.2,0.38371]
[1727710807748,1.34292,2606.4,2606.2,0.38371]
[1727710807946,0.38371,2606.3,2606.2,0.38371]
[1727710808156,2.95,2606.5,2605.8,0.95944]
[1727710808454,0.38371,2606.3,2606.2,0.38371]
[1727710808851,3.9092,2606.5,2605.8,0.95942]
[1727710809054,0.38371,2606.3,2606.2,0.38371]
[1727710809254,3.9092,2606.5,2605.9,0.9594]
[1727710809255,2.95,2606.5,2605.9,0.9594]
[1727710809455,3.33368,2606.5,2606.4,0.38369]
[1727710809655,0.95913,2606.7,2606.0,4.16717]
[1727710809656,0.38369,2606.4,2606.3,0.38369]
[1727710809957,0.38368,2606.5,2606.4,0.38368]
[1727710810165,0.38369,2606.4,2606.3,0.38369]
[1727710810355,3.32,2606.7,2606.1,0.95932]
[1727710810552,3.32,2606.7,2606.6,0.38366]
[1727710810553,3.70365,2606.7,2606.6,0.38366]
[1727710810756,3.32,2606.7,2606.6,0.38366]
[1727710811258,0.95897,2607.1,2606.5,0.95917]
[1727710811259,3.32,2607.1,2606.5,0.95917]
[1727710811572,3.70359,2607.1,2607.0,0.3836]
[1727710811756,0.38355,2607.4,2607.3,0.38355]
[1727710811954,0.38354,2607.4,2607.3,0.38355]
[1727710812254,0.95881,2607.6,2606.9,4.16682]
[1727710812460,3.2078,2607.8,2607.2,4.16671]
[1727710812461,3.59129,2607.8,2607.2,4.16671]
[1727710812656,3.2078,2607.8,2607.2,4.16671]
[1727710812961,3.2078,2607.8,2607.6,0.3835]
[1727710812962,3.59129,2607.8,2607.6,0.3835]
[1727710813156,3.59129,2607.8,2607.2,4.16671]
[1727710813157,7.0422,2607.8,2607.2,3.2078]
[1727710813363,0.38351,2607.6,2607.5,0.38352]
[1727710813563,0.3835,2607.7,2607.3,0.38355]
[1727710813763,3.2078,2607.8,2607.5,0.38351]
[1727710813965,3.2078,2607.8,2607.2,3.2078]
[1727710814357,0.38351,2607.6,2607.5,0.38352]
[1727710814756,4.16654,2607.8,2607.2,3.2078]
[1727710814962,3.2078,2607.8,2607.2,3.2078]
[1727710815153,3.2078,2607.5,2607.1,0.38357]
[1727710815359,0.38356,2607.3,2607.2,0.38357]
[1727710815658,3.32,2607.6,2607.2,0.38357]
[1727710815854,3.32,2607.6,2607.2,0.38356]
[1727710816065,0.38355,2607.4,2607.2,0.38356]
[1727710816255,4.2788,2607.6,2607.4,0.38353]
[1727710816256,0.38353,2607.5,2607.4,0.38353]
[1727710816457,3.32,2607.6,2607.0,3.2078]
[1727710816668,0.38354,2607.4,2607.3,0.38355]
[1727710816862,0.38354,2607.4,2607.0,3.2078]
[1727710816863,0.38355,2607.4,2607.2,0.38356]
[1727710817064,3.32,2607.6,2607.2,0.38357]
[1727710817065,0.38355,2607.3,2607.2,0.38357]
[1727710817269,0.38355,2607.3,2607.0,3.2078]
[1727710817567,0.38355,2607.3,2607.2,0.38357]
[1727710818168,0.38355,2607.4,2607.2,0.38357]
[1727710818564,0.38355,2607.4,2607.0,3.2078]
[1727710818870,0.38355,2607.3,2607.2,0.38356]
[1727710819165,0.38355,2607.4,2607.2,0.38356]
[1727710819575,0.38355,2607.4,2607.3,0.38355]
[1727710819869,3.32,2607.6,2607.0,3.2078]
[1727710820066,0.38352,2607.6,2607.5,0.38352]
[1727710820269,3.2078,2607.8,2607.1,0.95896]
[1727710820569,0.38353,2607.5,2607.4,0.38353]
[1727710821267,0.95874,2607.7,2607.0,5.16454317]
[1727710821465,0.38353,2607.5,2607.4,0.38353]
[1727710821863,0.38352,2607.5,2607.4,0.38353]
[1727710822059,0.95874,2607.7,2607.0,4.20556317]
[1727710822370,0.38356,2607.3,2607.2,0.38355]
[1727710822767,0.38355,2607.4,2607.3,0.38355]
[1727710823268,0.38356,2607.3,2607.2,0.38356]
[1727710825172,3.32,2607.6,2606.8,1.95682317]
[1727710825372,4.16662,2607.5,2606.7,0.99776317]
[1727710825563,3.32,2607.2,2606.9,0.3836]
[1727710826081,4.79496,2607.1,2606.6,0.99776317]
[1727710826265,3.32,2606.8,2606.4,0.99776317]
[1727710826467,3.32,2606.8,2606.4,0.38367]
[1727710826468,0.38368,2606.5,2606.4,0.38367]
[1727710826670,4.16675,2607.2,2606.4,0.95922]
[1727710826969,4.16675,2607.2,2606.6,0.38366]
[1727710826970,0.38365,2606.7,2606.6,0.38366]
[1727710827272,3.32,2606.8,2606.3,0.99776317]
[1727710827469,3.32,2606.8,2606.1,1.49664476]
[1727710827470,3.32,2606.4,2606.1,0.38372]
[1727710827664,0.38374,2606.1,2605.8,0.99776317]
[1727710827870,0.95929,2606.2,2605.8,0.38377]
[1727710828169,3.32,2606.4,2605.7,3.2078]
[1727710828378,3.32,2606.4,2605.7,4.20556317]
[1727710828669,3.70369,2606.4,2606.1,0.38372]
[1727710829270,3.32,2606.4,2605.8,0.99776317]
[1727710829480,0.38375,2606.0,2605.8,0.99776317]
[1727710829775,0.38371,2606.3,2606.0,0.38374]
[1727710829976,0.38371,2606.3,2605.8,1.38153317]
[1727710829977,0.38374,2606.1,2605.8,1.38153317]
[1727710830272,0.38376,2605.9,2605.7,4.20556317]
[1727710830469,3.2078,2606.3,2605.7,3.2078]
[1727710830668,0.38375,2606.0,2605.7,3.2078]
[1727710830872,0.95933,2606.1,2605.7,3.2078]
[1727710831375,0.95933,2606.1,2605.6,1.06830092]
[1727710831376,0.38379,2605.7,2605.6,1.06830092]
[1727710831775,13.17139,2605.7,2605.6,1.06830092]
[1727710832164,12.7876,2605.7,2604.9,4.20556317]
[1727710832370,2.95,2607.2,2604.9,3.2078]
[1727710832371,0.38389,2605.0,2604.9,3.2078]
[1727710832564,3.33388,2605.1,2604.8,0.99776317]
[1727710832769,3.33389,2605.1,2604.7,0.38393]
[1727710832980,2.95,2605.1,2604.7,0.38393]
[1727710833170,3.33389,2605.1,2604.7,0.38393]
[1727710833482,3.33389,2605.1,2604.7,0.38394]
[1727710833483,2.95,2605.1,2604.7,0.38394]
[1727710833683,2.95,2605.1,2604.6,3.2078]
[1727710833867,6.54164,2605.4,2605.0,0.38389]
[1727710834070,6.54164,2605.4,2604.6,4.20556317]
[1727710834071,0.38385,2605.3,2604.9,0.3839]
[1727710834272,0.38393,2604.8,2604.6,3.2078]
[1727710834476,3.33394,2604.7,2604.6,3.2078]
[1727710834676,2.95,2604.7,2604.6,3.2078]
[1727710834876,3.3339,2605.0,2604.6,3.59175]
[1727710835075,0.38391,2604.9,2604.6,3.59175]
[1727710835379,2.95,2605.0,2604.9,0.38391]
[1727710835574,0.38386,2605.3,2604.6,3.2078]
[1727710835981,0.38389,2605.1,2604.6,3.2078]
[1727710836276,6.1578,2605.4,2604.6,3.2078]
[1727710836476,0.38389,2605.1,2604.6,3.2078]
[1727710836774,0.38391,2604.9,2604.6,3.2078]
[1727710836979,0.38392,2604.9,2604.6,3.59174]
[1727710837169,0.38391,2604.9,2604.7,0.38393]
[1727710837373,3.3339,2605.0,2604.8,0.38392]
[1727710837569,2.95,2605.0,2604.6,3.2078]
[1727710838171,2.95,2605.0,2604.9,0.38391]
[1727710838372,3.33389,2605.0,2604.8,0.38391]
[1727710838779,0.38391,2604.9,2604.7,0.38394]
[1727710839178,0.38391,2604.9,2604.7,0.38393]
[1727710839380,2.95,2605.0,2604.6,3.2078]
[1727710839677,2.95,2605.0,2604.7,0.38394]
[1727710839877,0.38392,2604.8,2604.7,0.38393]
[1727710840080,2.95,2605.0,2604.7,0.38393]
[1727710840382,0.38391,2604.9,2604.7,0.38394]
[1727710840580,0.38391,2604.9,2604.6,3.2078]
[1727710840581,0.38391,2604.9,2604.8,0.38392]
[1727710840783,2.95,2605.0,2604.9,0.38391]
[1727710840982,6.1578,2605.4,2604.7,0.95985]
[1727710841279,0.38382,2605.5,2605.0,0.95972]
[1727710841483,2.95,2605.7,2604.9,3.2078]
[1727710841484,3.90949,2605.7,2604.9,3.2078]
[1727710841674,2.95,2605.7,2604.9,3.2078]
[1727710841871,0.38385,2605.3,2605.2,0.38386]
[1727710842074,0.38384,2605.4,2605.2,0.38386]
[1727710842282,0.38386,2605.3,2604.9,3.2078]
[1727710842490,0.38387,2605.2,2605.1,0.38387]
[1727710842779,0.38387,2605.2,2605.1,0.38388]
[1727710842974,0.38386,2605.3,2605.2,0.38386]
[1727710843371,3.33385,2605.4,2605.3,0.38385]
[1727710843585,2.95,2605.4,2605.2,0.38386]
[1727710843887,3.33384,2605.4,2605.3,0.38385]
[1727710844190,2.95,2605.4,2605.3,0.38385]
[1727710844987,0.95949,2605.7,2605.4,0.38382]
[1727710844988,2.95,2605.7,2605.4,0.38382]
[1727710845288,2.95,2605.7,2605.5,0.38382]
[1727710845289,0.38381,2605.6,2605.5,0.38382]
[1727710845478,2.95,2605.7,2605.5,0.38382]
[1727710845685,0.3838,2605.6,2605.5,0.38382]
[1727710845882,0.3838,2605.6,2605.1,0.95968]
[1727710845883,2.95,2605.7,2605.6,0.3838]
[1727710847187,3.3338,2605.7,2605.5,0.3838]
[1727710847383,3.3338,2605.7,2605.6,0.3838]
[1727710847884,0.38384,2605.4,2605.2,0.38385]
[1727710848072,0.38385,2605.3,2604.8,4.16759]
[1727710848277,3.33384,2605.4,2605.3,0.38385]
[1727710848596,0.38386,2605.3,2605.2,0.38386]
[1727710848783,3.33384,2605.4,2605.3,0.38385]
[1727710848980,3.33384,2605.4,2604.8,0.95979]
[1727710848981,3.9096,2605.4,2604.8,0.95979]
[1727710849186,0.38387,2605.2,2605.1,0.38387]
[1727710849481,3.33384,2605.4,2605.3,0.38385]
[1727710849992,2.95,2605.4,2605.3,0.38385]
[1727710851091,2.95,2605.4,2604.9,0.95975]
[1727710851279,3.33384,2605.4,2605.3,0.38385]
[1727710851589,3.33384,2605.4,2604.9,0.38389]
[1727710851590,0.38389,2605.1,2604.9,0.38389]
[1727710851883,0.38389,2605.1,2605.0,0.38389]
[1727710852290,3.90961,2605.4,2604.6,0.95988]
[1727710852490,3.90961,2605.4,2605.0,0.38389]
[1727710852688,3.90961,2605.4,2604.6,0.95988]
[1727710852892,0.38388,2605.2,2605.0,0.38388]
[1727710853189,0.38388,2605.2,2605.1,0.38388]
[1727710854994,0.38387,2605.2,2605.1,0.38387]
[1727710855203,3.8384,2605.2,2604.8,3.2078]
[1727710855393,3.2078,2605.5,2604.8,0.38391]
[1727710855394,2.95,2604.9,2604.8,0.38391]
[1727710855689,3.2078,2605.5,2604.9,0.38389]
[1727710855690,0.38389,2605.1,2604.9,0.38389]
[1727710855889,0.38389,2605.1,2605.0,0.38389]
[1727710856097,0.38388,2605.1,2605.0,0.38389]
[1727710856293,2.95,2605.2,2605.0,0.38389]
[1727710856493,0.38388,2605.1,2605.0,0.38389]
[1727710856689,0.38388,2605.1,2604.9,0.38389]
[1727710856889,2.95,2605.2,2604.7,3.2078]
[1727710857091,3.33387,2605.2,2605.1,0.38388]
[1727710857596,2.95,2605.2,2605.1,0.38388]
[1727710857793,3.33386,2605.2,2605.1,0.38388]
[1727710858299,3.33387,2605.2,2605.1,0.38388]
[1727710858503,3.33387,2605.2,2604.7,4.16763]
[1727710858804,3.90967,2605.2,2604.7,3.2078]
[1727710858998,2.95,2605.2,2604.8,0.38392]
[1727710859296,0.38391,2604.9,2604.8,0.38392]
[1727710859490,0.38393,2604.8,2604.7,0.38393]
[1727710859688,0.38393,2604.8,2604.2,0.96001]
[1727710859689,2.95,2604.9,2604.2,0.96001]
[1727710859895,0.38395,2604.6,2604.5,0.38395]
[1727710860492,0.95982,2604.8,2604.5,0.38396]
[1727710860789,0.95988,2604.6,2604.0,0.96009]
[1727710860995,0.38394,2604.7,2604.6,0.38395]
[1727710861195,2.95,2604.9,2604.4,3.2078]
[1727710861390,2.95,2604.5,2604.0,3.2078]
[1727710861596,0.38398,2604.4,2604.3,0.38399]
[1727710861799,2.95,2604.5,2604.2,0.384]
[1727710862000,0.38399,2604.4,2604.2,0.384]
[1727710862197,0.38399,2604.4,2604.3,0.38399]
[1727710862394,2.95,2604.5,2603.9,4.16793]
[1727710862595,3.33397,2604.5,2604.4,0.38398]
[1727710862793,2.95,2604.5,2604.4,0.38398]
[1727710863000,3.2078,2604.6,2604.5,0.38397]
[1727710863295,2.95,2604.9,2604.6,0.38394]
[1727710863296,0.38394,2604.7,2604.6,0.38394]
[1727710863502,0.38393,2604.8,2604.6,0.38394]
[1727710863695,2.95,2604.9,2604.2,4.16783]
[1727710863696,3.33391,2604.9,2604.2,4.16783]
[1727710864001,2.95,2604.9,2604.4,0.95996]
[1727710864204,0.95961,2605.4,2604.9,0.38389]
[1727710864205,2.95,2605.2,2604.9,0.38389]
[1727710864503,2.95,2605.2,2604.5,0.95992]
[1727710864504,0.38392,2604.9,2604.8,0.38392]
[1727710864898,0.38392,2604.9,2604.5,3.2078]
[1727710864899,2.95,2605.2,2604.5,3.2078]
[1727710865098,3.33387,2605.2,2605.1,0.38388]
[1727710865301,0.38388,2605.1,2604.9,0.3839]
[1727710865602,0.38388,2605.1,2605.0,0.38389]
[1727710865807,2.95,2605.2,2604.7,0.95985]
[1727710865808,3.33387,2605.2,2604.7,0.95985]
[1727710866101,3.33387,2605.2,2605.0,0.38388]
[1727710866102,2.95,2605.2,2605.0,0.38388]
[1727710866308,2.95,2605.2,2604.7,0.95985]
[1727710866506,3.33387,2605.2,2604.7,0.95985]
[1727710866807,0.38388,2605.1,2605.0,0.38389]
[1727710867102,3.33387,2605.2,2605.0,0.38389]
[1727710867309,0.95954,2605.6,2604.4,0.95996]
[1727710867310,3.33383,2605.5,2605.3,0.38383]
[1727710867500,3.33383,2605.5,2604.9,0.95977]